bitfinex-derivatives/quotes_BNBF0:USTF0_20250709
["timestamp","ask_amount","ask_price","bid_price","bid_amount"]
[1752073459665,1.69016335,662.37,661.99,1.69154626]
[1752073460570,1.69016335,662.36,661.98,1.69154626]
[1752073462470,1.69016335,662.39,662.01,1.69154626]
[1752073462671,1.69016335,662.54,661.95,1.69154626]
[1752073462870,1.69016335,662.54,661.93,1.675]
[1752073462871,1.69016335,662.57,661.93,3.36654626]
[1752073463271,1.69016335,662.58,661.93,1.675]
[1752073463973,1.69016335,662.58,661.93,3.36654626]
[1752073464172,1.69016335,662.57,661.94,1.69154626]
[1752073464673,1.69016335,662.57,661.95,1.69154626]
[1752073465168,1.69016335,662.56,661.96,1.69154626]
[1752073465371,1.69016335,662.57,661.95,1.69154626]
[1752073467273,1.69016335,662.58,661.94,1.69154626]
[1752073469269,1.69016335,662.58,661.93,1.675]
[1752073469270,1.69016335,662.59,661.93,3.36654626]
[1752073469774,1.69016335,662.57,661.95,1.69154626]
[1752073469974,1.69016335,662.57,661.96,1.69154626]
[1752073470174,1.69016335,662.58,661.95,1.69154626]
[1752073470672,1.69016335,662.56,661.98,1.69154626]
[1752073471172,1.69016335,662.57,661.99,1.69154626]
[1752073472474,1.69016335,662.57,662.0,1.69154626]
[1752073472877,1.69016335,662.57,661.99,1.69154626]
[1752073473071,1.69016335,662.61,661.93,3.36654626]
[1752073474079,1.69016335,662.62,661.94,1.69154626]
[1752073474379,1.69016335,662.62,661.93,3.36654626]
[1752073475281,1.69016335,662.63,661.93,3.36654626]
[1752073477983,1.69016335,662.63,661.94,1.69154626]
[1752073478280,1.69016335,662.63,661.93,3.36654626]
[1752073478986,1.69016335,662.64,661.93,1.675]
[1752073480486,1.69016335,662.59,661.93,1.675]
[1752073482183,1.69016335,662.56,661.93,1.675]
[1752073483090,1.69016335,662.54,661.93,1.675]
[1752073484289,1.69016335,662.53,661.93,1.675]
[1752073484789,1.69016335,662.52,661.93,1.675]
[1752073488293,1.69016335,662.51,661.93,1.675]
[1752073488799,1.69016335,662.49,661.95,1.69154626]
[1752073489099,1.69016335,662.5,661.96,1.69154626]
[1752073489995,1.69016335,662.49,661.95,1.69154626]
[1752073490197,1.69016335,662.49,661.96,1.69154626]
[1752073493300,1.69016335,662.49,661.95,1.69154626]
[1752073493499,1.69016335,662.52,661.93,1.675]
[1752073494197,1.69016335,662.51,661.93,1.675]
[1752073494597,1.69016335,662.51,661.93,3.36654626]
[1752073496202,1.69016335,662.56,661.93,1.675]
[1752073498199,1.69016335,662.55,661.93,1.675]
[1752073503501,1.69016335,662.54,661.93,1.675]
[1752073506101,1.69016335,662.47,661.98,1.69154626]
[1752073506901,1.69016335,662.48,661.96,1.69154626]
[1752073507502,1.69016335,662.47,661.95,1.69154626]
[1752073508402,1.69016335,662.47,661.96,1.69154626]
[1752073508803,1.69016335,662.47,661.95,1.69154626]
[1752073510506,1.69016335,662.48,661.96,3.70754626]
[1752073510801,1.69016335,662.47,661.96,3.70754626]
[1752073511401,1.69016335,662.48,661.96,3.70754626]
[1752073512306,1.69016335,662.47,661.96,3.70754626]
[1752073513108,1.69016335,662.47,661.97,1.69154626]
[1752073513408,1.69016335,662.44,662.01,1.69154626]
[1752073517310,1.69016335,662.43,662.01,1.69154626]
[1752073518306,1.69016335,662.43,662.02,1.69154626]
[1752073518506,1.69016335,662.46,661.98,1.69154626]
[1752073520312,1.69016335,662.45,661.98,1.69154626]
[1752073520709,1.69016335,662.46,661.98,1.69154626]
[1752073521512,1.69016335,662.45,661.98,1.69154626]
[1752073521909,2.24326377,662.59,661.96,2.016]
[1752073522108,1.69440669,662.45,661.98,1.69600485]
[1752073522314,1.69449988,662.45,661.98,1.69609813]
[1752073523415,1.69449988,662.46,661.98,1.69609813]
[1752073527712,1.69464824,662.46,661.98,1.6962177]
[1752073528416,1.69464824,662.43,662.02,1.6962177]
[1752073529217,1.69464824,662.44,662.01,1.6962177]
[1752073530516,1.69464824,662.44,661.96,2.016]
[1752073530517,1.69464824,662.43,662.02,1.6962177]
[1752073530719,1.69464824,662.5,661.96,2.016]
[1752073531318,1.69464824,662.51,661.96,2.016]
[1752073531718,1.69464824,662.51,661.91,1.6962177]
[1752073532717,1.69464824,662.5,661.91,1.6962177]
[1752073533018,1.69464824,662.51,661.91,1.6962177]
[1752073533419,1.69464824,662.5,661.91,1.6962177]
[1752073534519,1.69464824,662.5,661.92,1.969]
[1752073535320,1.69464824,662.5,661.92,3.6652177]
[1752073536220,1.69464824,662.5,661.92,1.969]
[1752073536419,1.69464824,662.5,661.92,3.6652177]
[1752073537017,1.69464824,662.51,661.92,1.969]
[1752073538517,1.69464824,662.5,661.92,1.969]
[1752073539118,2.24326377,662.7,661.92,1.969]
[1752073539317,1.69603873,662.5,661.92,1.969]
[1752073539620,1.69603873,662.46,661.96,1.69764069]
[1752073540216,1.69603873,662.45,661.96,1.69764069]
[1752073540517,2.24326377,662.62,661.96,1.69764069]
[1752073540518,1.69603873,662.46,661.96,1.69764069]
[1752073540917,1.69603873,662.51,661.92,3.66664069]
[1752073544319,1.69603873,662.52,661.92,3.66664069]
[1752073547020,1.69603873,662.51,661.93,1.69764069]
[1752073548119,1.69603873,662.51,661.94,1.69764069]
[1752073548422,1.69603873,662.51,661.93,1.69764069]
[1752073549525,1.69603873,662.5,661.94,1.69764069]
[1752073550627,1.69603873,662.45,662.03,1.69764069]
[1752073550922,1.69603873,662.44,662.03,1.69764069]
[1752073551725,1.69603873,662.44,661.92,1.969]
[1752073551726,1.69603873,662.45,662.02,1.69764069]
[1752073552422,7.85142322,663.56,662.0,1.69764069]
[1752073552423,1.69603873,662.47,662.0,1.69764069]
[1752073552625,1.69603873,662.47,661.99,1.69764069]
[1752073553022,1.69603873,662.46,661.99,1.69764069]
[1752073553823,1.69603873,662.46,661.92,1.969]
[1752073553824,1.69603873,662.47,661.98,1.69764069]
[1752073555924,1.69603873,662.45,662.01,1.69764069]
[1752073557724,5.60815944,663.33,661.95,1.69764069]
[1752073557725,1.69603873,662.49,661.95,1.69764069]
[1752073558623,1.69603873,662.48,661.94,1.69764069]
[1752073559029,1.69603873,662.48,661.95,1.69764069]
[1752073560029,1.69603873,662.48,661.94,1.69764069]
[1752073560730,1.69603873,662.47,661.94,1.69764069]
[1752073562132,1.69603873,662.47,661.95,1.69764069]
[1752073563632,1.69603873,662.46,661.96,1.69764069]
[1752073566537,1.69603873,662.46,661.95,1.69764069]
[1752073567639,1.69603873,662.46,661.92,1.969]
[1752073567640,1.69603873,662.41,662.02,1.69764069]
[1752073568042,1.69618373,662.41,662.02,1.69779297]
[1752073568740,1.69618373,662.41,662.03,1.69779297]
[1752073570240,1.69618373,662.41,662.02,1.69779297]
[1752073575445,1.69618373,662.41,662.03,1.69779297]
[1752073576349,1.69618373,662.41,662.02,1.69779297]
[1752073576649,1.69618373,662.4,662.04,1.69779297]
[1752073578150,1.69618373,662.4,662.05,1.69779297]
[1752073578447,1.69618373,662.41,662.03,1.69779297]
[1752073580250,1.69618373,662.41,662.04,1.69779297]
[1752073581151,1.69618373,662.41,662.03,1.69779297]
[1752073581451,1.69618373,662.41,662.04,1.69779297]
[1752073583048,1.69618373,662.41,662.03,1.69779297]
[1752073583552,1.69618373,662.4,662.04,1.69779297]
[1752073584048,1.69618373,662.4,662.03,1.69779297]
[1752073584348,1.69618373,662.4,662.02,1.69779297]
[1752073586155,1.69618373,662.4,662.03,1.69779297]
[1752073587851,1.69618373,662.4,662.04,1.69779297]
[1752073588254,1.69618373,662.4,662.05,1.69779297]
[1752073590555,1.69618373,662.39,662.05,1.69779297]
[1752073591058,1.69618373,662.39,661.84,3.36817207]
[1752073591059,1.69618373,662.46,661.93,1.69779297]
[1752073591960,1.69618373,662.46,661.94,1.89]
[1752073593260,1.69618373,662.42,661.94,1.89]
[1752073593757,1.69618373,662.38,661.94,1.89]
[1752073594357,1.69618373,662.39,661.94,1.89]
[1752073595159,1.69618373,662.4,661.94,1.89]
[1752073595859,1.69618373,662.36,661.94,1.89]
[1752073597260,1.69618373,662.37,661.94,1.89]
[1752073597660,2.24326377,662.52,661.94,1.89]
[1752073598160,5.60815944,663.25,661.94,1.89]
[1752073598360,7.85142322,663.54,661.94,1.89]
[1752073599266,7.90414749,663.36,661.94,1.89]
[1752073599466,1.69374589,662.26,661.94,1.89]
[1752073599766,1.69371596,662.27,661.94,1.89]
[1752073600266,1.69371596,662.28,661.94,1.89]
[1752073600465,1.69371596,662.29,661.94,1.89]
[1752073600766,1.69371596,662.28,661.94,1.89]
[1752073601063,1.69371596,662.27,661.94,1.89]
[1752073601263,1.69371596,662.28,661.94,1.89]
[1752073602265,1.69371596,662.29,661.94,1.89]
[1752073603170,1.69371596,662.3,661.94,1.89]
[1752073604372,1.69371596,662.31,661.94,1.89]
[1752073605172,1.69371596,662.3,661.94,1.89]
[1752073605367,1.69371596,662.31,661.94,1.89]
[1752073606173,1.69371596,662.32,661.94,1.89]
[1752073606974,1.69371596,662.33,661.94,1.89]
[1752073608170,1.69371596,662.34,661.94,1.89]
[1752073608670,1.69371596,662.35,661.94,1.89]
[1752073609375,1.69371596,662.33,661.94,1.89]
[1752073609876,1.69371596,662.33,661.79,0.2627476]
[1752073610072,1.69371596,662.34,661.79,0.2627476]
[1752073610274,1.69371596,662.33,661.79,0.2627476]
[1752073613075,1.69371596,662.34,661.8,2.49]
[1752073614276,1.69371596,662.35,661.8,2.49]
[1752073615481,1.69371596,662.36,661.8,2.49]
[1752073615978,1.69371596,662.37,661.8,2.49]
[1752073616182,1.69371596,662.43,661.8,2.49]
[1752073617778,1.69371596,662.44,661.8,2.49]
[1752073617977,1.69371596,662.48,661.84,1.69685676]
[1752073618277,1.69371596,662.48,661.83,1.69685676]
[1752073619278,1.69371596,662.47,661.83,1.69685676]
[1752073619482,1.69371596,662.49,661.84,1.69685676]
[1752073620383,1.69371596,662.49,661.83,1.69685676]
[1752073620883,1.69371596,662.48,661.84,1.69685676]
[1752073621184,1.69371596,662.49,661.83,1.69685676]
[1752073621581,1.69371596,662.48,661.85,1.69685676]
[1752073622686,1.69371596,662.47,661.85,1.69685676]
[1752073623187,1.69371596,662.48,661.85,1.69685676]
[1752073623486,1.69371596,662.47,661.85,1.69685676]
[1752073624587,1.69371596,662.48,661.83,1.69685676]
[1752073624881,1.69371596,662.48,661.82,1.69685676]
[1752073625688,1.69371596,662.48,661.81,1.69685676]
[1752073627586,1.69371596,662.48,661.82,1.69685676]
[1752073627887,1.69371596,662.44,661.8,2.49]
[1752073630984,1.69371596,662.43,661.8,2.49]
[1752073632088,1.69371596,662.44,661.8,2.49]
[1752073634290,1.69371596,662.43,661.8,2.49]
[1752073634487,1.69371596,662.42,661.8,4.18685676]
[1752073635391,1.69371596,662.41,661.81,1.69685676]
[1752073636293,1.69371596,662.41,661.82,1.69685676]
[1752073638595,1.69371596,662.4,661.82,1.69685676]
[1752073639197,1.69371596,662.41,661.8,4.18685676]
[1752073639995,1.69371596,662.42,661.8,4.18685676]
[1752073640196,1.69371596,662.41,661.8,4.18685676]
[1752073641095,1.69371596,662.41,661.81,1.69685676]
[1752073641994,1.69371596,662.4,661.82,1.69685676]
[1752073642195,1.69371596,662.41,661.81,1.69685676]
[1752073642796,1.69371596,662.4,661.82,1.69685676]
[1752073643900,1.69371596,662.4,661.81,1.69685676]
[1752073644298,1.69371596,662.4,661.82,1.69685676]
[1752073645400,1.69371596,662.4,661.8,2.49]
[1752073645401,1.69371596,662.41,661.81,1.69685676]
[1752073646196,1.69371596,662.4,661.81,1.69685676]
[1752073646401,1.69371596,662.4,661.82,1.69685676]
[1752073649000,1.69371596,662.39,661.83,1.69685676]
[1752073649300,1.69371596,662.39,661.84,1.69685676]
[1752073650303,1.69371596,662.38,661.84,1.69685676]
[1752073651010,1.69371596,662.39,661.83,1.69685676]
[1752073651703,1.69371596,662.39,661.82,1.69685676]
[1752073652107,1.69371596,662.39,661.83,1.69685676]
[1752073652305,1.69371596,662.38,661.83,1.69685676]
[1752073652707,1.69371596,662.45,661.8,2.49]
[1752073653010,1.69371596,662.49,661.8,2.49]
[1752073653209,1.69371596,662.46,661.8,2.49]
[1752073660911,1.69371596,662.45,661.8,2.49]
[1752073662614,1.69371596,662.4,661.81,1.69685676]
[1752073664117,1.69371596,662.4,661.82,1.69685676]
[1752073664315,1.69371596,662.39,661.82,1.69685676]
[1752073665216,1.69371596,662.39,661.83,1.69685676]
[1752073665812,1.69371596,662.39,661.82,1.69685676]
[1752073666016,1.69371596,662.4,661.82,1.69685676]
[1752073666316,1.69371596,662.39,661.83,1.69685676]
[1752073667317,1.69371596,662.37,661.87,1.69685676]
[1752073667714,1.69371596,662.36,661.87,1.69685676]
[1752073668414,1.69371596,662.35,661.88,1.69685676]
[1752073668616,1.69371596,662.35,661.89,1.69685676]
[1752073670516,1.69371596,662.34,661.9,1.69685676]
[1752073672220,1.69371596,662.35,661.89,1.69685676]
[1752073673216,1.69371596,662.34,661.89,1.69685676]
[1752073674119,1.69371596,662.34,661.9,1.69685676]
[1752073675115,1.69371596,662.33,661.9,1.69685676]
[1752073675820,1.69371596,662.34,661.89,1.69685676]
[1752073676522,1.69371596,662.35,661.89,1.69685676]
[1752073677923,1.69371596,662.34,661.89,1.69685676]
[1752073678123,1.69371596,662.4,661.8,3.48585676]
[1752073679120,1.69371596,662.39,661.8,3.48585676]
[1752073680528,1.69371596,662.38,661.81,1.69685676]
[1752073680728,1.69371596,662.3,661.94,1.69685676]
[1752073682325,1.69371596,662.29,661.94,1.69685676]
[1752073684332,1.69371596,662.29,661.95,1.69685676]
[1752073685730,1.69371596,662.28,661.94,1.69685676]
[1752073686336,1.69371596,662.28,661.95,1.69685676]
[1752073686630,1.69371596,662.28,661.94,1.69685676]
[1752073687234,1.69371596,662.28,661.95,1.69685676]
[1752073689137,1.69371596,662.28,661.94,1.69685676]
[1752073689436,1.69371596,662.28,661.93,1.69685676]
[1752073691335,1.69371596,662.28,661.81,2.26249998]
[1752073691336,1.69371596,662.29,661.92,1.69685676]
[1752073692236,1.69371596,662.3,661.9,1.69685676]
[1752073692740,1.69371596,662.29,661.89,1.69685676]
[1752073693940,1.69371596,662.21,661.81,1.69685676]
[1752073694340,1.69371596,662.23,661.8,3.48585676]
[1752073695041,1.69371596,662.22,661.8,3.48585676]
[1752073695238,1.69371596,662.23,661.8,1.789]
[1752073696241,1.69371596,662.24,661.8,1.789]
[1752073697143,1.69371596,662.25,661.8,1.789]
[1752073699543,1.69371596,662.26,661.8,1.789]
[1752073699944,1.69371596,662.25,661.8,1.789]
[1752073700345,1.69371596,662.26,661.8,1.789]
[1752073700541,1.69371596,662.25,661.8,1.789]
[1752073701146,1.69371596,662.26,661.8,1.789]
[1752073702148,1.69371596,662.25,661.8,1.789]
[1752073704351,1.69371596,662.26,661.8,1.789]
[1752073707250,1.69371596,662.28,661.81,1.69685676]
[1752073707954,1.69371596,662.29,661.81,1.69685676]
[1752073709351,1.69371596,662.28,661.82,1.69685676]
[1752073709655,1.69371596,662.38,661.8,3.48585676]
[1752073709854,1.69371596,662.38,661.81,1.69685676]
[1752073714456,1.69371596,662.38,661.8,3.48585676]
[1752073715158,1.69371596,662.38,661.81,1.69685676]
[1752073715459,1.69371596,662.38,661.8,1.69685676]
[1752073716156,1.69371596,662.38,661.81,1.69685676]
[1752073716360,1.69371596,662.38,661.8,1.69685676]
[1752073716557,1.69371596,662.38,661.81,1.69685676]
[1752073718464,1.69371596,662.38,661.82,2.031]
[1752073719263,1.69371596,662.38,661.82,3.72785676]
[1752073719562,1.69371596,662.42,661.82,2.031]
[1752073719767,1.69371596,662.51,661.85,1.69685676]
[1752073721263,1.69371596,662.51,661.84,1.69685676]
[1752073721768,1.69371596,662.52,661.84,1.69685676]
[1752073721963,1.69371596,662.52,661.85,1.69685676]
[1752073722163,1.69371596,662.53,661.85,1.69685676]
[1752073726171,1.69371596,662.53,661.84,1.69685676]
[1752073726369,1.69371596,662.54,661.84,1.69685676]
[1752073728574,1.69371596,662.54,661.83,1.69685676]
[1752073729271,1.69371596,662.51,661.88,1.69685676]
[1752073729471,1.69371596,662.51,661.89,1.69685676]
[1752073730474,1.69371596,662.5,661.89,1.69685676]
[1752073731474,1.69371596,662.51,661.9,1.69685676]
[1752073731675,1.69371596,662.5,661.91,1.69685676]
[1752073731873,1.69371596,662.51,661.91,1.69685676]
[1752073732274,1.69371596,662.49,661.93,1.69685676]
[1752073733976,1.69371596,662.5,661.93,1.69685676]
[1752073737081,1.69371596,662.51,661.92,1.69685676]
[1752073737381,1.69371596,662.51,661.91,1.69685676]
[1752073737882,1.69371596,662.52,661.92,1.69685676]
[1752073738279,1.69371596,662.58,661.94,1.69685676]
[1752073739183,1.69371596,662.58,661.93,1.69685676]
[1752073739583,1.69371596,662.59,661.93,1.69685676]
[1752073740082,1.69371596,662.59,661.92,1.69685676]
[1752073741883,2.25832785,662.75,661.82,2.031]
[1752073742084,1.68924347,662.6,661.92,1.69221521]
[1752073742280,1.68924347,662.6,661.91,1.69221521]
[1752073742681,1.68924347,662.6,661.92,1.69221521]
[1752073743386,1.68924347,662.6,661.91,1.69221521]
[1752073744584,1.68924347,662.61,661.91,1.69221521]
[1752073744783,1.68924347,662.6,661.91,1.69221521]
[1752073745183,1.68924347,662.61,661.91,1.69221521]
[1752073745583,1.68924347,662.6,661.91,1.69221521]
[1752073746284,1.68924347,662.61,661.91,1.69221521]
[1752073747386,1.68924347,662.61,661.82,2.031]
[1752073747387,1.68924347,662.6,661.92,1.69221521]
[1752073749586,7.90414749,663.71,661.89,1.69221521]
[1752073749587,1.68924347,662.62,661.89,1.69221521]
[1752073749887,1.68924347,662.61,661.89,1.69221521]
[1752073757294,1.68924347,662.6,661.9,1.69221521]
[1752073757690,1.68924347,662.61,661.9,1.69221521]
[1752073758396,1.68924347,662.6,661.9,1.69221521]
[1752073759295,1.68924347,662.6,661.91,1.69221521]
[1752073759498,1.68924347,662.58,661.94,1.69221521]
[1752073760999,1.68924347,662.58,661.95,1.69221521]
[1752073761299,1.68924347,662.58,661.96,1.69221521]
[1752073761994,1.68924347,662.57,661.96,1.69221521]
[1752073763301,1.68924347,662.56,661.96,1.69221521]
[1752073763706,1.68924347,662.56,661.97,1.69221521]
[1752073764103,1.68924347,662.55,661.97,1.69221521]
[1752073764903,1.68924347,662.56,661.97,1.69221521]
[1752073765307,1.68924347,662.55,661.98,1.69221521]
[1752073766209,1.68924347,662.54,661.99,1.69221521]
[1752073767205,1.68924347,662.53,661.99,1.69221521]
[1752073767410,1.68924347,662.53,662.0,1.69221521]
[1752073768108,1.68924347,662.52,662.01,1.69221521]
[1752073769409,1.68924347,662.51,662.02,1.69221521]
[1752073770411,1.68924347,662.51,662.03,1.69221521]
[1752073772119,1.68924347,662.5,662.03,1.69221521]
[1752073774222,1.68924347,662.49,662.02,1.69221521]
[1752073775120,1.68924347,662.49,662.03,1.69221521]
[1752073775317,1.68924347,662.51,661.98,1.69221521]
[1752073776123,1.68924347,662.51,661.99,1.69221521]
[1752073776724,1.68924347,662.52,661.97,1.69221521]
[1752073776923,1.68924347,662.48,661.93,1.69221521]
[1752073777122,1.68924347,662.48,661.94,1.69221521]
[1752073777623,1.68924347,662.48,661.93,1.69221521]
[1752073778320,1.68924347,662.47,661.94,1.69221521]
[1752073779124,1.68924347,662.46,661.95,1.69221521]
[1752073780724,1.68924347,662.47,661.94,1.69221521]
[1752073781120,1.68924347,662.46,661.94,1.69221521]
[1752073781825,1.68924347,662.42,661.91,2.314]
[1752073783127,1.68924347,662.4,661.93,1.69221521]
[1752073786126,1.68924347,662.4,661.92,1.69221521]
[1752073789427,1.68924347,662.4,661.91,4.00621521]
[1752073790029,1.68924347,662.41,661.93,1.69221521]
[1752073790234,2.25832785,662.54,661.91,2.314]
[1752073790533,1.69142206,662.41,661.93,1.69575529]
[1752073790729,1.69142206,662.39,661.95,1.69575529]
[1752073790929,1.69142206,662.4,661.94,1.69575529]
[1752073792334,1.69142206,662.41,661.94,1.69575529]
[1752073793033,1.69142206,662.42,661.93,1.69575529]
[1752073793238,1.69142206,662.42,661.92,1.69575529]
[1752073797140,1.69142206,662.43,661.91,4.00975529]
[1752073799341,1.69142206,662.43,661.91,2.314]
[1752073799639,1.69142206,662.44,661.91,2.314]
[1752073801041,1.69142206,662.43,661.91,2.314]
[1752073801543,1.69142206,662.39,661.91,2.314]
[1752073802039,1.69063246,662.39,661.91,2.314]
[1752073807548,1.69063246,662.38,661.91,2.314]
[1752073808148,1.69063246,662.39,661.91,2.314]
[1752073809549,1.69063246,662.38,661.91,2.314]
[1752073810251,1.69063246,662.39,661.91,2.314]
[1752073810450,1.69063246,662.38,661.91,2.314]
[1752073813454,1.69063246,662.37,661.91,2.314]
[1752073813851,1.69063246,662.38,661.91,2.314]
[1752073815151,1.69063246,662.37,661.91,2.314]
[1752073815651,2.25832785,662.48,661.91,2.314]
[1752073815952,1.68924819,662.38,661.91,2.314]
[1752073820058,1.68924819,662.39,661.91,2.314]
[1752073820460,1.68924819,662.38,661.91,2.314]
[1752073821863,1.68924819,662.39,661.91,2.314]
[1752073822860,1.68924819,662.51,661.91,2.314]
[1752073823260,1.68924819,662.58,661.91,2.314]
[1752073824159,1.68924819,662.59,661.91,2.314]
[1752073825456,1.68924819,662.54,661.91,2.314]
[1752073826657,1.68924819,662.56,661.93,1.69432497]
[1752073827957,1.68924819,662.57,661.94,1.69432497]
[1752073828361,1.68924819,662.56,661.94,1.69432497]
[1752073829262,1.68924819,662.55,661.96,1.69432497]
[1752073829663,1.68924819,662.55,661.97,1.708]
[1752073831463,1.68924819,662.51,662.02,1.69432497]
[1752073831662,1.68924819,662.55,661.97,1.708]
[1752073832365,1.68924819,662.54,661.97,1.708]
[1752073833062,1.68924819,662.55,661.97,1.708]
[1752073835373,1.68924819,662.54,661.97,1.708]
[1752073837480,1.68924819,662.55,661.97,1.708]
[1752073839580,1.68924819,662.54,661.97,1.708]
[1752073840180,1.68924819,662.51,661.97,1.708]
[1752073840682,1.68924819,662.5,661.97,1.708]
[1752073841377,1.68924819,662.48,661.97,1.708]
[1752073841781,1.68924819,662.47,661.97,1.708]
[1752073842982,1.68924819,662.46,661.97,1.708]
[1752073843276,1.68924819,662.41,661.97,1.708]
[1752073845385,1.68924819,662.42,661.97,1.708]
[1752073846085,1.68924819,662.41,661.97,1.708]
[1752073846481,1.68924819,662.42,661.97,1.708]
[1752073846983,1.68924819,662.41,661.97,1.708]
[1752073847382,1.68924819,662.42,661.97,1.708]
[1752073848989,1.68924819,662.41,661.97,1.708]
[1752073850088,2.25832785,662.53,661.97,1.708]
[1752073850288,1.68915187,662.41,661.97,1.708]
[1752073854191,1.68915187,662.42,661.97,1.708]
[1752073854593,1.68915187,662.39,661.97,1.708]
[1752073855093,1.68915187,662.38,661.97,1.708]
[1752073856196,1.68915187,662.43,661.97,1.708]
[1752073857395,1.68915187,662.44,661.97,1.708]
[1752073857591,1.68915187,662.43,661.97,1.708]
[1752073857993,1.68915187,662.44,661.97,1.708]
[1752073859197,1.68915187,662.43,661.97,1.708]
[1752073859796,1.68915187,662.44,661.97,1.708]
[1752073859997,1.68915187,662.43,661.97,1.708]
[1752073860596,1.68915187,662.44,661.97,1.708]
[1752073860800,1.68915187,662.43,661.97,1.708]
[1752073863903,1.68915187,662.42,661.97,1.708]
[1752073865509,1.68915187,662.37,661.97,1.708]
[1752073865707,1.68915187,662.36,661.97,1.708]
[1752073867704,1.68915187,662.36,661.82,1.69452061]
[1752073869411,1.68915187,662.38,661.78,1.69452061]
[1752073869611,1.68915187,662.3,661.76,0.26278827]
[1752073870213,1.68915187,662.3,661.77,2.414]
[1752073872510,1.68915187,662.31,661.77,2.414]
[1752073873816,1.68915187,662.3,661.77,2.414]
[1752073874116,1.68915187,662.27,661.77,2.414]
[1752073874312,1.68915187,662.22,661.77,2.414]
[1752073874612,1.68915187,662.23,661.77,2.414]
[1752073875613,1.68915187,662.24,661.77,2.414]
[1752073876314,1.68915187,662.25,661.77,2.414]
[1752073877418,1.68915187,662.26,661.77,2.414]
[1752073878418,1.68915187,662.27,661.77,2.414]
[1752073878918,1.68915187,662.25,661.77,2.414]
[1752073879221,1.68915187,662.24,661.77,2.414]
[1752073879419,1.68915187,662.25,661.77,2.414]
[1752073882416,1.68915187,662.26,661.77,2.414]
[1752073885424,1.68915187,662.27,661.77,2.414]
[1752073885925,1.68915187,662.28,661.77,2.414]
[1752073886125,1.68915187,662.37,661.77,2.414]
[1752073886327,1.68915187,662.39,661.77,2.414]
[1752073887622,1.68915187,662.4,661.77,2.414]
[1752073891431,1.68915187,662.39,661.77,2.414]
[1752073892932,1.68915187,662.4,661.77,2.414]
[1752073893338,1.68915187,662.39,661.77,2.414]
[1752073893537,1.68915187,662.38,661.77,2.414]
[1752073894033,1.68915187,662.39,661.77,2.414]
[1752073894236,1.68915187,662.46,661.76,0.26278827]
[1752073895038,1.68915187,662.45,661.76,0.26278827]
[1752073895234,1.68915187,662.44,661.76,0.26278827]
[1752073897239,1.68915187,662.43,661.76,0.26278827]
[1752073897434,1.68915187,662.43,661.77,1.839]
[1752073899439,1.68915187,662.42,661.77,3.53352061]
[1752073901136,2.25832785,662.54,661.77,3.53352061]
[1752073901137,1.68915187,662.41,661.77,3.53352061]
[1752073902242,1.68915187,662.41,661.78,1.69452061]
[1752073903840,1.68915187,662.39,661.81,1.69452061]
[1752073904546,1.68915187,662.39,661.8,1.69452061]
[1752073904839,1.68915187,662.41,661.78,1.69452061]
[1752073905742,1.68915187,662.43,661.77,1.839]
[1752073906044,1.68915187,662.46,661.79,1.69452061]
[1752073908140,1.68915187,662.47,661.78,1.69452061]
[1752073909146,1.68915187,662.46,661.78,1.69452061]
[1752073913144,1.68915187,662.45,661.78,1.69452061]
[1752073913346,1.68915187,662.46,661.78,1.69452061]
[1752073913643,1.68915187,662.45,661.79,1.69452061]
[1752073914442,1.68915187,662.44,661.8,1.69452061]
[1752073915749,1.68915187,662.43,661.82,1.69452061]
[1752073917846,1.68915187,662.42,661.85,1.69452061]
[1752073919944,1.68915187,662.42,661.86,1.69452061]
[1752073920551,1.68915187,662.42,661.85,1.69452061]
[1752073922751,1.68915187,662.42,661.86,1.69452061]
[1752073923648,1.68915187,662.42,661.85,1.69452061]
[1752073927457,1.68915187,662.43,661.85,1.69452061]
[1752073928156,1.686094,662.43,661.85,1.69228606]
[1752073930363,1.686094,662.44,661.83,1.69228606]
[1752073932963,1.686094,662.45,661.82,1.69228606]
[1752073934767,2.25832785,662.57,661.82,1.69228606]
[1752073934768,1.686094,662.44,661.82,1.69228606]
[1752073935166,1.686094,662.45,661.83,2.371]
[1752073935365,1.686094,662.44,661.83,2.371]
[1752073935667,1.686094,662.44,661.83,4.06328606]
[1752073937368,1.686094,662.43,661.84,1.69228606]
[1752073939273,5.64581964,663.17,661.83,2.371]
[1752073939274,1.686094,662.44,661.83,2.371]
[1752073940173,1.686094,662.43,661.83,4.06328606]
[1752073940373,1.686094,662.43,661.84,1.69228606]
[1752073941371,1.686094,662.43,661.83,4.06328606]
[1752073941568,1.686094,662.43,661.84,1.69228606]